bitfinex/quotes_BTCUSD_20230906
["timestamp","ask_amount","ask_price","bid_price","bid_amount"]
[1694026275442,3.18416541,25728.0,25727.0,0.004]
[1694026275661,3.18482541,25728.0,25727.0,0.004]
[1694026275878,3.18530541,25728.0,25727.0,0.004]
[1694026276105,3.18542541,25728.0,25727.0,0.004]
[1694026276395,3.18440541,25728.0,25727.0,0.004]
[1694026276616,3.18128541,25728.0,25727.0,0.004]
[1694026276839,3.17948541,25728.0,25727.0,0.004]
[1694026277068,3.17354541,25728.0,25727.0,0.004]
[1694026277275,3.17156541,25728.0,25727.0,0.004]
[1694026277495,3.17144541,25728.0,25727.0,0.004]
[1694026277757,3.17114541,25728.0,25727.0,0.004]
[1694026277976,3.17036541,25728.0,25727.0,0.004]
[1694026278229,3.16718541,25728.0,25727.0,0.004]
[1694026278386,3.16268541,25728.0,25727.0,0.004]
[1694026278664,2.12342451,25728.0,25727.0,0.004]
[1694026278872,0.2903614,25728.0,25727.0,0.004]
[1694026279056,0.24448675,25728.0,25727.0,0.004]
[1694026279181,0.2903614,25728.0,25727.0,0.004]
[1694026279386,0.47389656,25728.0,25727.0,0.004]
[1694026279587,0.2444884,25728.0,25727.0,0.004]
[1694026280242,0.45041484,25728.0,25727.0,0.004]
[1694026281031,0.679823,25728.0,25727.0,0.004]
[1694026281603,0.47389656,25728.0,25727.0,0.004]
[1694026284133,0.2903614,25728.0,25727.0,0.004]
[1694026284542,1.1888244,25728.0,25727.0,0.004]
[1694026285082,0.95941624,25728.0,25727.0,0.004]
[1694026285493,0.18205324,25728.0,25727.0,0.004]
[1694026285701,0.70062579,25728.0,25727.0,0.004]
[1694026288573,0.47124263,25728.0,25727.0,0.004]
[1694026289253,0.70058279,25728.0,25727.0,0.004]
[1694026289465,0.76295925,25728.0,25727.0,0.004]
[1694026289668,0.2902934,25728.0,25727.0,0.004]
[1694026289882,0.19857448,25728.0,25727.0,0.03326417]
[1694026290099,0.19857448,25728.0,25727.0,0.81065717]
[1694026290308,0.19857448,25728.0,25727.0,0.03326417]
[1694026291601,0.25971477,25728.0,25727.0,0.03326417]
[1694026293654,0.53492195,25728.0,25727.0,0.03326417]
[1694026298420,0.30558179,25728.0,25727.0,0.03326417]
[1694026302750,0.2444415,25728.0,25727.0,0.03326417]
[1694026305888,0.47378166,25728.0,25727.0,0.03326417]
[1694026306306,0.47378166,25728.0,25727.0,0.02947331]
[1694026307143,1.25114466,25728.0,25727.0,0.02947331]
[1694026307317,2.02850766,25728.0,25727.0,0.02947331]
[1694026309582,1.63778993,25728.0,25727.0,0.02947331]
[1694026309989,2.41515293,25728.0,25727.0,0.02947331]
[1694026310213,2.23166467,25728.0,25727.0,0.02947331]
[1694026313231,1.45430167,25728.0,25727.0,0.02947331]
[1694026313555,1.45445718,25728.0,25727.0,0.02947331]
[1694026314826,0.67709418,25728.0,25727.0,0.02947331]
[1694026316555,1.45445718,25728.0,25727.0,0.02947331]
[1694026316979,2.23182018,25728.0,25727.0,0.02947331]
[1694026318559,1.45445718,25728.0,25727.0,0.02947331]
[1694026319595,0.67709418,25728.0,25727.0,0.02947331]
[1694026322961,0.44759851,25728.0,25727.0,0.02947331]
[1694026323167,1.22496151,25728.0,25727.0,0.02947331]
[1694026324502,0.44759851,25728.0,25727.0,0.02947331]
[1694026330046,0.67704287,25728.0,25727.0,0.02947331]
[1694026330438,0.44759851,25728.0,25727.0,0.02947331]
[1694026336453,0.06095324,25728.0,25727.0,0.02947331]
[1694026336658,0.24448104,25728.0,25727.0,1.58425931]
[1694026336867,0.24448104,25728.0,25727.0,0.80686631]
[1694026337339,0.24448008,25728.0,25727.0,0.80686631]
[1694026337737,0.29186894,25728.0,25727.0,0.80686631]
[1694026338095,0.29186894,25728.0,25727.0,1.58425931]
[1694026338699,0.24448008,25728.0,25727.0,1.58425931]
[1694026339126,0.24448008,25728.0,25727.0,2.36165231]
[1694026339673,0.38211822,25728.0,25727.0,2.36165231]
[1694026340112,0.19859138,25728.0,25727.0,2.36165231]
[1694026341852,0.25954539,25728.0,25727.0,2.36165231]
[1694026343134,0.25954539,25728.0,25727.0,1.58425931]
[1694026343392,0.32679347,25728.0,25727.0,1.58425931]
[1694026343895,0.25954539,25728.0,25727.0,1.58425931]
[1694026345554,0.35134396,25728.0,25727.0,1.58425931]
[1694026345762,0.25954539,25728.0,25727.0,1.58425931]
[1694026345970,0.35134381,25728.0,25727.0,1.58425931]
[1694026346202,0.25954539,25728.0,25727.0,1.58425931]
[1694026346608,0.35134073,25728.0,25727.0,1.58425931]
[1694026347323,0.35134073,25728.0,25727.0,2.09090458]
[1694026347566,0.06095324,25728.0,25727.0,3.34939758]
[1694026347999,0.032,25728.0,25727.0,3.34939758]
[1694026348411,0.015,25728.0,25727.0,3.34939758]
[1694026348627,0.09179534,25732.0,25731.0,0.12568287]
[1694026348853,0.13763814,25733.0,25731.0,3.35587087]
[1694026348854,0.22943348,25733.0,25731.0,3.35587087]
[1694026349061,0.13763814,25733.0,25732.0,1.70126687]
[1694026349264,0.13763814,25733.0,25732.0,2.47850887]
[1694026349464,0.22940639,25733.0,25732.0,2.47850887]
[1694026349667,0.09176825,25733.0,25732.0,2.47850887]
[1694026350100,0.09376825,25733.0,25732.0,2.47850887]
[1694026350301,0.09176825,25733.0,25732.0,2.47850887]
[1694026350505,0.09176825,25734.0,25732.0,2.47850887]
[1694026350720,0.002,25733.0,25732.0,2.37740887]
[1694026350923,0.002,25733.0,25732.0,2.49850887]
[1694026351333,0.004,25733.0,25732.0,2.51550887]
[1694026351750,0.002,25733.0,25732.0,2.49550887]
[1694026352096,0.002,25733.0,25732.0,2.51550887]
[1694026352304,0.002,25733.0,25732.0,3.00215414]
[1694026352763,0.004,25733.0,25732.0,3.02215414]
[1694026353573,0.004,25733.0,25732.0,3.08215414]
[1694026353849,0.004,25733.0,25732.0,3.38215414]
[1694026361063,0.004,25733.0,25732.0,3.36215414]
[1694026361274,0.004,25733.0,25732.0,3.38215414]
[1694026367914,0.03580706,25733.0,25732.0,3.38215414]
[1694026374240,0.03580706,25733.0,25732.0,0.06268287]
[1694026374445,0.03580706,25733.0,25732.0,0.16268287]
[1694026375284,0.13337377,25733.0,25732.0,0.16268287]
[1694026375485,0.03580706,25733.0,25732.0,0.06268287]
[1694026375688,0.03580706,25733.0,25732.0,0.16268287]
[1694026376672,0.03580706,25733.0,25732.0,0.08268287]
[1694026378039,0.03580706,25733.0,25732.0,0.06268287]
[1694026378040,2.36744306,25733.0,25732.0,0.06268287]
[1694026378249,2.90279337,25733.0,25732.0,0.037]
[1694026378492,3.29879864,25733.0,25732.0,0.037]
[1694026378742,3.29945864,25733.0,25732.0,0.037]
[1694026379000,3.29945864,25733.0,25732.0,0.06268287]
[1694026379001,3.29117864,25733.0,25732.0,0.06268287]
[1694026379197,3.28797864,25733.0,25732.0,0.04568287]
[1694026379404,3.29655864,25733.0,25732.0,0.04668287]
[1694026379617,3.29553864,25733.0,25732.0,0.04668287]
[1694026379824,3.29523864,25733.0,25732.0,0.04668287]
[1694026380038,3.28659864,25733.0,25732.0,0.04568287]
[1694026380247,3.31035864,25733.0,25732.0,0.04768287]
[1694026380428,3.30603864,25733.0,25732.0,0.04768287]
[1694026380683,3.30207864,25733.0,25732.0,0.04768287]
[1694026380881,3.30297864,25733.0,25732.0,0.04768287]
[1694026381089,3.30835864,25733.0,25732.0,0.04868287]
[1694026381289,3.30121864,25733.0,25732.0,0.02768287]
[1694026381562,3.32581864,25733.0,25732.0,0.02968287]
[1694026381766,3.32599864,25733.0,25732.0,0.02968287]
[1694026381921,3.32659864,25733.0,25732.0,0.02968287]
[1694026382121,3.33115864,25733.0,25732.0,0.02968287]
[1694026382331,3.32659864,25733.0,25732.0,0.02968287]
[1694026382608,3.32533864,25733.0,25732.0,0.02968287]
[1694026382810,3.32515864,25733.0,25732.0,0.02968287]
[1694026383039,3.32503864,25733.0,25732.0,0.02968287]
[1694026383242,3.32491864,25733.0,25732.0,0.02968287]
[1694026383432,3.32485864,25733.0,25732.0,0.02968287]
[1694026383634,3.32509864,25733.0,25732.0,0.02968287]
[1694026383845,3.32539864,25733.0,25732.0,0.02968287]
[1694026384051,3.32527864,25733.0,25732.0,0.02968287]
[1694026384275,3.32515864,25733.0,25732.0,0.02968287]
[1694026384475,3.32509864,25733.0,25732.0,0.02968287]
[1694026384684,3.32497864,25733.0,25732.0,0.02968287]
[1694026385089,3.32479864,25733.0,25732.0,0.02968287]
[1694026385300,3.32473864,25733.0,25732.0,0.02968287]
[1694026385502,3.32503864,25733.0,25732.0,0.02968287]
[1694026385714,3.32509864,25733.0,25732.0,0.02968287]
[1694026385925,3.32491864,25733.0,25732.0,0.02968287]
[1694026386139,3.32473864,25733.0,25732.0,0.02968287]
[1694026386306,3.32461864,25733.0,25732.0,0.02968287]
[1694026386515,3.32449864,25733.0,25732.0,0.02968287]
[1694026386781,3.48423577,25733.0,25732.0,0.004]
[1694026386958,3.99179577,25733.0,25732.0,0.004]
[1694026387312,3.1095,25728.0,25723.0,0.02568287]
[1694026387525,3.1095,25728.0,25720.0,0.26849911]
[1694026387526,0.38664527,25727.0,25721.0,0.02568287]
[1694026387738,3.109788,25726.0,25721.0,0.02568287]
[1694026387969,0.1211,25723.0,25721.0,0.02568287]
[1694026388183,1.555088,25722.0,25721.0,0.02568287]
[1694026388393,1.800459,25722.0,25721.0,0.02568287]
[1694026388819,1.555088,25722.0,25721.0,0.02568287]
[1694026389228,0.777544,25722.0,25721.0,0.02568287]
[1694026389433,1.677162,25723.0,25721.0,0.02568287]
[1694026389434,1.67716,25723.0,25721.0,0.02568287]
[1694026389636,1.555088,25722.0,25721.0,0.02568287]
[1694026390009,1.557088,25722.0,25721.0,0.02568287]
[1694026391805,1.559088,25722.0,25721.0,0.02568287]
[1694026392009,1.811999,25722.0,25721.0,0.02568287]
[1694026392619,1.034455,25722.0,25721.0,0.02568287]
[1694026393205,1.811999,25722.0,25721.0,0.02568287]
[1694026394626,1.559088,25722.0,25721.0,0.02568287]
[1694026395224,1.559088,25722.0,25720.0,0.01989699]
[1694026395225,2.336632,25722.0,25720.0,0.04557986]
[1694026395458,2.410732,25722.0,25721.0,0.02568287]
[1694026395662,2.402932,25722.0,25721.0,0.02568287]
[1694026395893,2.402932,25722.0,25720.0,0.01989699]
[1694026395894,3.24005267,25722.0,25720.0,0.01989699]
[1694026396117,0.1211,25721.0,25720.0,0.01989699]
[1694026396328,2.453822,25721.0,25720.0,0.01989699]
[1694026396551,2.90850727,25721.0,25720.0,0.01989699]
[1694026396763,2.84046727,25721.0,25720.0,0.01989699]
[1694026396970,3.22711254,25721.0,25720.0,0.01989699]
[1694026397194,3.30115254,25721.0,25720.0,0.01989699]
[1694026397404,3.30769254,25721.0,25720.0,0.01989699]
[1694026397611,3.30913254,25721.0,25720.0,0.01989699]
[1694026397820,3.30085254,25721.0,25720.0,0.01989699]
[1694026398126,3.23211254,25721.0,25720.0,0.01989699]
[1694026398351,3.26170754,25721.0,25720.0,0.01989699]
[1694026398512,3.25670754,25721.0,25720.0,0.01989699]
[1694026398707,3.25770754,25721.0,25720.0,0.01989699]
[1694026399035,3.32662754,25721.0,25720.0,0.01989699]
[1694026399166,3.25870754,25721.0,25720.0,0.01989699]
[1694026400219,3.33178754,25721.0,25720.0,0.01989699]
[1694026400425,3.33496754,25721.0,25720.0,0.01989699]
[1694026400622,3.34168754,25721.0,25720.0,0.01989699]
[1694026400830,3.34468754,25721.0,25720.0,0.01989699]
[1694026401036,3.33976754,25721.0,25720.0,0.01989699]
[1694026401242,3.33940754,25721.0,25720.0,0.01989699]
[1694026401450,3.37294467,25721.0,25720.0,0.01989699]
[1694026401683,3.69218467,25721.0,25720.0,0.01989699]
[1694026401889,3.96758467,25721.0,25720.0,0.01989699]
[1694026402091,3.96890467,25721.0,25720.0,0.01989699]
[1694026402295,3.96790467,25721.0,25720.0,0.01989699]
[1694026402495,3.97998467,25721.0,25720.0,0.01989699]
[1694026402695,4.00506467,25721.0,25720.0,0.01989699]
[1694026402933,4.02270467,25721.0,25720.0,0.01989699]
[1694026403146,0.11431713,25719.0,25714.0,0.02568287]
[1694026403351,0.1211,25716.0,25713.0,0.01989699]
[1694026403560,3.111024,25715.0,25713.0,0.01989699]
[1694026403767,0.38664527,25714.0,25713.0,0.01989699]
[1694026403975,2.94544327,25714.0,25713.0,0.01982858]
[1694026404199,2.94796327,25714.0,25713.0,0.01982858]
[1694026404401,3.33772854,25714.0,25713.0,0.01982858]
[1694026404598,3.34048854,25714.0,25713.0,0.01982858]
[1694026404813,3.35122854,25714.0,25713.0,0.01982858]
[1694026405033,3.34780854,25714.0,25713.0,0.01982858]
[1694026405242,3.37210854,25714.0,25713.0,0.01982858]
[1694026405445,3.37204854,25714.0,25713.0,0.01982858]
[1694026405651,1.03431713,25712.0,25711.0,0.019998]
[1694026405861,5.16119167,25712.0,25711.0,0.019998]
[1694026406075,5.73947167,25712.0,25711.0,0.019998]
[1694026406286,5.76127167,25712.0,25711.0,0.019998]
[1694026406481,5.75083167,25712.0,25711.0,0.019998]
[1694026406705,5.63009167,25712.0,25711.0,0.019998]
[1694026406916,5.60851167,25712.0,25711.0,0.019998]
[1694026407117,5.60419167,25712.0,25711.0,0.019998]
[1694026407293,5.45997167,25712.0,25711.0,0.019998]
[1694026407616,5.43315167,25712.0,25711.0,0.019998]
[1694026407817,5.47131167,25712.0,25711.0,0.019998]
[1694026408020,5.47203167,25712.0,25711.0,0.019998]
[1694026408218,6.26987767,25712.0,25711.0,0.019998]
[1694026408482,6.90201767,25712.0,25711.0,0.019998]
[1694026408659,6.90153767,25712.0,25711.0,0.019998]
[1694026408877,6.92043767,25712.0,25711.0,0.019998]
[1694026409081,6.89781767,25712.0,25711.0,0.019998]
[1694026409338,6.92211767,25712.0,25711.0,0.019998]
[1694026409494,6.89967767,25712.0,25711.0,0.019998]
[1694026409694,6.90021767,25712.0,25711.0,0.019998]
[1694026409952,5.12467167,25712.0,25711.0,0.019998]
[1694026410154,5.86991767,25712.0,25711.0,0.019998]
[1694026410384,5.87813767,25712.0,25711.0,0.019998]
[1694026410589,5.87831767,25712.0,25711.0,0.019998]
[1694026410809,6.22527767,25712.0,25711.0,0.019998]
[1694026411001,5.65975767,25712.0,25711.0,0.019998]
[1694026411244,5.65951767,25712.0,25711.0,0.019998]
[1694026411410,5.69659767,25712.0,25711.0,0.019998]
[1694026411605,5.69167767,25712.0,25711.0,0.019998]
[1694026411910,5.67499767,25712.0,25711.0,0.019998]
[1694026412114,5.53843767,25712.0,25711.0,0.019998]
[1694026412382,5.53855767,25712.0,25711.0,0.019998]
[1694026412597,5.53933767,25712.0,25711.0,0.019998]
[1694026412805,5.67157767,25712.0,25711.0,0.019998]
[1694026413014,5.67439767,25712.0,25711.0,0.019998]
[1694026413267,5.68243767,25712.0,25711.0,0.019998]
[1694026413470,5.55476669,25712.0,25711.0,0.019998]
[1694026413682,5.51862669,25712.0,25711.0,0.019998]
[1694026413874,5.51412669,25712.0,25711.0,0.019998]
[1694026413993,5.51382669,25712.0,25711.0,0.019998]
[1694026414191,5.51400669,25712.0,25711.0,0.019998]
[1694026414443,5.51574669,25712.0,25711.0,0.019998]
[1694026414649,5.51448669,25712.0,25711.0,0.019998]
[1694026414854,5.39212669,25712.0,25711.0,0.019998]
[1694026415025,4.20441542,25712.0,25711.0,0.019998]
[1694026415241,4.22205542,25712.0,25711.0,0.019998]
[1694026415441,4.23207542,25712.0,25711.0,0.019998]
[1694026415673,4.23219542,25712.0,25711.0,0.019998]
[1694026415824,4.62010069,25712.0,25711.0,0.019998]
[1694026416026,4.62034069,25712.0,25711.0,0.019998]
[1694026416272,4.61824069,25712.0,25711.0,0.019998]
[1694026416476,4.61302069,25712.0,25711.0,0.019998]
[1694026416619,4.61368069,25712.0,25711.0,0.019998]
[1694026416847,4.61614069,25712.0,25711.0,0.019998]
[1694026417048,4.61632069,25712.0,25711.0,0.019998]
[1694026417250,4.61344069,25712.0,25711.0,0.01987174]
[1694026417451,4.61320069,25712.0,25711.0,0.01987174]
[1694026417651,4.60864069,25712.0,25711.0,0.01987174]
[1694026417856,4.60882069,25712.0,25711.0,0.01987174]
[1694026418070,4.60828069,25712.0,25711.0,0.01987174]
[1694026418282,4.60912069,25712.0,25711.0,0.01987174]
[1694026418483,4.60612069,25712.0,25711.0,0.01987174]
[1694026418680,4.20639542,25712.0,25711.0,0.01987174]
[1694026418881,4.20483542,25712.0,25711.0,0.01987174]
[1694026419171,4.19547542,25712.0,25711.0,0.01987174]
[1694026419382,4.10815542,25712.0,25711.0,0.01987174]
[1694026420016,4.17853542,25712.0,25711.0,0.01987174]
[1694026420219,4.42528664,25712.0,25711.0,0.01987174]
[1694026420432,4.44088664,25712.0,25711.0,0.01987174]
[1694026420645,4.43728664,25712.0,25711.0,0.01987174]
[1694026420852,4.43002664,25712.0,25711.0,0.01987174]
[1694026421064,4.42804664,25712.0,25711.0,0.01987174]
[1694026421273,4.30736951,25712.0,25711.0,0.01987174]
[1694026421483,0.07470902,25712.0,25711.0,0.01987174]
[1694026422140,0.85255502,25712.0,25711.0,0.01987174]
[1694026422348,1.63040102,25712.0,25711.0,0.01987174]
[1694026422763,1.60640102,25712.0,25711.0,0.01987174]
[1694026422966,0.07470902,25712.0,25711.0,0.04555461]
[1694026423396,0.05070902,25712.0,25711.0,0.04555461]
[1694026423594,0.07470902,25712.0,25711.0,0.04555461]
[1694026424209,0.82855502,25712.0,25711.0,0.04555461]
[1694026424411,1.60640102,25712.0,25711.0,0.04555461]
[1694026424837,1.62840102,25712.0,25711.0,0.04555461]
[1694026425038,1.86682332,25712.0,25711.0,0.04555461]
[1694026425651,0.31113132,25712.0,25711.0,0.04555461]
[1694026425857,0.07270902,25712.0,25711.0,0.04555461]
[1694026426071,0.05070902,25712.0,25711.0,0.04555461]
[1694026426288,0.05570902,25712.0,25711.0,0.04655461]
[1694026426507,0.03170902,25712.0,25711.0,0.04655461]
[1694026427128,0.03970902,25712.0,25711.0,0.04755461]
[1694026427532,0.02670902,25712.0,25711.0,0.04555461]
[1694026427956,0.02870902,25712.0,25711.0,0.05055461]
[1694026429210,0.26492112,25712.0,25711.0,0.05055461]
[1694026429568,0.02870902,25712.0,25711.0,2.50528561]
[1694026429770,0.02870902,25712.0,25711.0,1.72740861]
[1694026430516,1.53423802,25715.0,25711.0,0.94953161]
[1694026430724,0.75647102,25715.0,25713.0,0.1211]
[1694026430960,1.555483,25716.0,25713.0,0.1211]
[1694026431159,0.77774,25716.0,25713.0,0.1211]
[1694026431352,0.777739,25716.0,25713.0,0.1211]
[1694026431884,0.022,25715.0,25714.0,0.02568287]
[1694026432172,0.777656,25719.0,25717.0,0.01068287]
[1694026432173,0.777653,25719.0,25717.0,0.01068287]
[1694026432394,0.777638,25719.0,25717.0,0.16534098]
[1694026432620,0.777638,25719.0,25717.0,0.01068287]
[1694026432621,2.33293,25719.0,25717.0,0.01068287]
[1694026432846,2.71957527,25719.0,25717.0,0.01068287]
[1694026433070,2.79589527,25719.0,25717.0,0.01068287]
[1694026433292,2.79463527,25719.0,25717.0,0.01068287]
[1694026433560,3.17084261,25719.0,25717.0,0.01068287]
[1694026433762,3.17060261,25719.0,25717.0,0.01068287]
[1694026433999,3.17138261,25719.0,25717.0,0.01068287]
[1694026434198,3.18726261,25719.0,25717.0,0.01168287]
[1694026434400,3.18666261,25719.0,25717.0,0.01168287]
[1694026434621,3.18648261,25719.0,25717.0,0.01168287]
[1694026434938,3.20000261,25719.0,25717.0,0.01268287]
[1694026435145,3.19982261,25719.0,25717.0,0.01268287]
[1694026435343,3.19958261,25719.0,25717.0,0.01268287]
[1694026435546,3.19946261,25719.0,25717.0,0.01268287]
[1694026435751,3.19928261,25719.0,25717.0,0.01268287]
[1694026435968,3.19904261,25719.0,25717.0,0.01268287]
[1694026436161,3.19964261,25719.0,25717.0,0.01268287]
[1694026436392,3.19934261,25719.0,25717.0,0.01268287]
[1694026436569,3.19910261,25719.0,25717.0,0.01268287]
[1694026436782,3.19868261,25719.0,25717.0,0.01268287]
[1694026436987,3.19856261,25719.0,25717.0,0.01268287]
[1694026437169,3.19838261,25719.0,25717.0,0.01268287]
[1694026437368,3.19826261,25719.0,25717.0,0.01268287]
[1694026437568,3.19388261,25719.0,25717.0,0.01268287]
[1694026437776,3.19298261,25719.0,25717.0,0.01268287]
[1694026437974,3.19304261,25719.0,25717.0,0.01268287]
[1694026438175,0.02472553,25718.0,25717.0,0.01268287]
[1694026438374,2.35772053,25718.0,25717.0,0.01268287]
[1694026438588,2.49475002,25718.0,25717.0,0.01268287]
[1694026439185,2.49475002,25718.0,25717.0,0.01068287]
[1694026439387,2.49475002,25718.0,25717.0,0.01268287]
[1694026439388,2.50775002,25718.0,25717.0,0.01268287]
[1694026440336,2.50775002,25718.0,25717.0,0.002]
[1694026441468,2.50775002,25718.0,25717.0,0.01268287]
[1694026441675,1.59305553,25718.0,25717.0,0.01268287]
[1694026442089,0.03772553,25718.0,25717.0,0.01268287]
[1694026443684,0.09870742,25718.0,25717.0,0.01268287]
[1694026444308,1.65403742,25718.0,25717.0,0.01268287]
[1694026444947,1.65403742,25718.0,25717.0,0.002]
[1694026445143,1.65403742,25718.0,25717.0,0.01268287]
[1694026445497,2.43170242,25718.0,25717.0,0.01268287]
[1694026449576,1.65403742,25718.0,25717.0,0.01268287]
[1694026449788,0.87637242,25718.0,25717.0,0.01268287]
[1694026450804,0.87137242,25718.0,25717.0,0.01168287]
[1694026451009,0.87237242,25718.0,25717.0,0.01568287]
[1694026451415,1.64203742,25718.0,25717.0,0.01468287]
[1694026451614,1.64203742,25718.0,25717.0,0.01668287]
[1694026451615,1.64303742,25718.0,25717.0,0.01668287]
[1694026452243,0.08770742,25718.0,25717.0,0.03168287]
[1694026454227,0.08770742,25718.0,25717.0,0.15278287]
[1694026456394,0.08770742,25718.0,25717.0,0.03168287]
[1694026457833,0.08770742,25718.0,25717.0,0.15278287]
[1694026458391,0.08770742,25718.0,25717.0,2.09481814]
[1694026458596,0.02672553,25718.0,25717.0,2.99251314]
[1694026458752,0.002,25718.0,25717.0,2.99251314]
[1694026459864,0.001,25718.0,25717.0,2.98851314]
[1694026460089,0.003,25718.0,25717.0,2.99951314]
[1694026460498,0.002,25718.0,25717.0,2.99751314]
[1694026460700,0.02891129,25718.0,25717.0,3.00751314]
[1694026460901,0.02691129,25718.0,25717.0,2.99651314]
[1694026461102,0.02891129,25718.0,25717.0,3.00751314]
[1694026461350,0.02691129,25718.0,25717.0,2.99751314]
[1694026461551,0.02691129,25718.0,25717.0,3.00751314]
[1694026461552,0.02891129,25718.0,25717.0,3.00751314]
[1694026466438,0.004,25718.0,25717.0,3.00751314]
[1694026469124,0.004,25718.0,25717.0,3.36751314]
[1694026471346,0.02891129,25718.0,25717.0,3.36751314]
[1694026472160,0.02891129,25718.0,25717.0,0.38668287]
[1694026472368,0.02891129,25718.0,25717.0,0.04668287]
[1694026472604,0.02891129,25718.0,25717.0,0.08668287]
[1694026473008,0.20390562,25718.0,25717.0,0.04668287]
[1694026473505,0.02491129,25718.0,25717.0,0.02568287]
[1694026473762,0.02991129,25718.0,25717.0,0.04468287]
[1694026474038,0.02791129,25718.0,25717.0,0.03468287]
[1694026474288,0.02691129,25718.0,25717.0,0.03568287]
[1694026474540,0.02991129,25718.0,25717.0,0.04468287]
[1694026490843,0.02991129,25718.0,25717.0,0.82237787]
[1694026491077,0.02991129,25718.0,25717.0,1.98671814]
[1694026491286,0.02991129,25718.0,25717.0,0.43132814]
[1694026491921,0.02991129,25718.0,25717.0,1.20902314]
[1694026492737,0.02991129,25718.0,25717.0,0.43132814]
[1694026497894,0.02991129,25718.0,25717.0,1.20902314]
[1694026498298,0.02991129,25718.0,25717.0,1.98671814]
[1694026498701,0.02991129,25718.0,25717.0,2.76441314]
[1694026499183,0.02991129,25718.0,25717.0,2.88441314]
[1694026499643,0.02991129,25718.0,25717.0,3.00551314]
[1694026500265,0.02991129,25718.0,25717.0,2.22781814]
[1694026500479,0.02991129,25718.0,25717.0,2.10671814]
[1694026500681,0.02991129,25718.0,25717.0,2.22781814]
[1694026503010,0.02991129,25718.0,25717.0,2.10671814]
[1694026503213,0.02991129,25718.0,25717.0,2.22781814]
[1694026506036,0.02991129,25718.0,25717.0,0.10468287]
[1694026506245,0.02991129,25718.0,25717.0,0.16468287]
[1694026506488,0.21289975,25718.0,25717.0,0.019]
[1694026506696,0.21289975,25718.0,25712.0,0.02568287]
[1694026506697,3.4675603,25718.0,25712.0,0.02568287]
[1694026506912,0.22941803,25714.0,25710.0,0.02568287]
[1694026507129,0.1211,25712.0,25710.0,0.02568287]
[1694026507311,0.777877,25711.0,25710.0,0.02568287]
[1694026507559,1.8311533,25711.0,25710.0,0.02568287]
[1694026507777,0.898976,25712.0,25710.0,0.02568287]
[1694026507778,1.555744,25712.0,25710.0,0.02568287]
[1694026508876,0.777868,25712.0,25710.0,0.02568287]
[1694026509567,1.557729,25712.0,25710.0,0.02568287]
[1694026510341,2.45669,25712.0,25710.0,0.02568287]
[1694026512252,2.45669,25712.0,25704.0,2.037698]
[1694026512462,0.4951292,25711.0,25710.0,0.02568287]
[1694026512668,2.0508832,25711.0,25710.0,0.02568287]
[1694026512874,2.8287602,25711.0,25710.0,0.02568287]
[1694026513090,2.6643602,25711.0,25710.0,0.02568287]
[1694026513725,2.6663602,25711.0,25710.0,0.02568287]
[1694026514786,1.8884832,25711.0,25710.0,0.02568287]
[1694026515220,0.003,25711.0,25710.0,0.02568287]
[1694026518575,0.02746895,25711.0,25710.0,0.02568287]
[1694026518783,0.003,25711.0,25710.0,0.02568287]
[1694026522879,0.003,25711.0,25710.0,0.80358987]
[1694026523756,0.003,25711.0,25710.0,0.02568287]
[1694026524162,0.02746895,25711.0,25710.0,0.02568287]
[1694026524342,0.003,25711.0,25710.0,0.02568287]
[1694026524568,0.003,25711.0,25710.0,0.80358987]
[1694026525514,0.02746895,25711.0,25710.0,0.80358987]
[1694026525760,0.003,25711.0,25710.0,0.80358987]
[1694026526372,0.003,25711.0,25710.0,0.02568287]
[1694026526979,0.02758407,25711.0,25710.0,0.02568287]
[1694026527156,0.003,25711.0,25710.0,0.02568287]
[1694026532559,0.187417,25711.0,25710.0,0.02568287]
[1694026533423,0.22055417,25711.0,25710.0,0.02568287]
[1694026534424,0.34165417,25711.0,25710.0,0.02568287]
[1694026539959,0.34165417,25711.0,25709.0,0.01068287]
[1694026540154,1.065207,25710.0,25708.0,0.02568287]
[1694026540326,0.1211,25709.0,25708.0,0.02568287]
[1694026541823,0.1221,25709.0,25708.0,0.02568287]
[1694026543254,0.1241,25709.0,25708.0,0.02568287]
[1694026544060,0.003,25709.0,25708.0,0.02568287]
[1694026548193,0.03534372,25709.0,25708.0,0.02568287]
[1694026548559,0.03610053,25709.0,25708.0,0.02568287]
[1694026549145,0.03610053,25709.0,25704.0,2.11588642]
[1694026549356,0.03610053,25709.0,25708.0,0.02568287]
[1694026549973,0.03410053,25709.0,25708.0,0.02568287]
[1694026550176,0.03510053,25709.0,25708.0,0.02568287]
[1694026550395,1.90512898,25709.0,25706.0,0.02568287]
[1694026550610,1.90512898,25709.0,25705.0,0.02568287]
[1694026550611,0.1211,25707.0,25705.0,0.02568287]
[1694026550812,0.899128,25706.0,25703.0,0.02568287]
[1694026551018,0.1211,25704.0,25703.0,0.02568287]
[1694026551430,0.1211,25704.0,25701.0,0.13928818]
[1694026551641,0.1211,25702.0,25701.0,0.04620087]
[1694026551849,1.677398,25702.0,25701.0,0.020518]
[1694026552270,1.743878,25702.0,25701.0,0.020518]
[1694026552472,1.677398,25702.0,25701.0,0.020518]
[1694026552675,0.901249,25702.0,25701.0,0.04620087]
[1694026552882,0.46092414,25702.0,25701.0,0.04620087]
[1694026553083,0.45892414,25702.0,25701.0,0.04620087]
[1694026553301,0.45992414,25702.0,25701.0,0.04620087]
[1694026553568,0.1221,25702.0,25701.0,0.04620087]
[1694026553742,0.1241,25702.0,25701.0,0.04620087]
[1694026554164,0.001,25702.0,25701.0,0.04620087]
[1694026554614,0.002,25702.0,25701.0,0.04620087]
[1694026555924,0.1231,25702.0,25701.0,0.04620087]
[1694026556125,1.12425853,25702.0,25701.0,0.04620087]
[1694026556502,1.90240753,25702.0,25701.0,0.04620087]
[1694026562332,1.90240753,25702.0,25701.0,0.020518]
[1694026562333,3.0672018,25702.0,25701.0,0.020518]
[1694026562546,3.1716018,25702.0,25701.0,0.020518]
[1694026562771,3.18477893,25702.0,25701.0,0.020518]
[1694026562969,3.17823893,25702.0,25701.0,0.02041708]
[1694026563174,3.17049893,25702.0,25701.0,0.02041708]
[1694026563323,3.19481491,25702.0,25701.0,0.02041708]
[1694026563543,3.20233491,25702.0,25701.0,0.02041708]
[1694026563746,2.11693638,25702.0,25701.0,0.02041708]
[1694026563953,2.13293638,25702.0,25701.0,0.02041708]
[1694026564163,0.95914211,25702.0,25701.0,0.02041708]
[1694026564385,1.73729111,25702.0,25701.0,0.02041708]
[1694026564593,1.75529111,25702.0,25701.0,0.02041708]
[1694026565447,2.53344011,25702.0,25701.0,0.02041708]
[1694026565868,3.16403568,25702.0,25701.0,0.02041708]
[1694026566084,3.17879568,25702.0,25701.0,0.02041708]